Cogmind - Beta 14 @@@ ROGUE MODE // 2025.01.12 @ 19:41:27 Player: BlueKanary Result: Destroyed by G-34 Mercenary with Small Laser Performance ------------- Evolutions (1) 500 Regions Visited (3) 600 Robots Destroyed (31) 155 Value Destroyed (1004) 1004 Prototype IDs (4) 80 Alien Tech Used (0) 0 Bonus (63) 63 TOTAL SCORE: 2402 Bonus ------- High Alert Combat Kills 63 Cogmind --------- Core Integrity 0/400 Matter 9/300 Energy 265/265 System Corruption 1% Temperature Cool (10) Movement Treading (160) Location -9/Storage Parts ------- > --- POWER (1) -------- Improved Ion Engine > --- PROPULSION (2) --- Light Treads Light Treads > --- UTILITY (2) ------ Medium Storage Unit Hacking Suite > --- WEAPON (4) ------- Particle Gun Light EM Pulse Cannon Grenade Launcher > --- INVENTORY (10) --- Improved Ion Engine Aluminum Leg Aluminum Leg Medium Storage Unit Hacking Suite Heavy Assault Rifle Grenade Launcher Guided Missile Launcher Peak State ------------ > --- POWER ------------ Improved Ion Engine > --- PROPULSION ------- Light Treads Light Treads > --- UTILITY ---------- Medium Storage Unit Hacking Suite > --- WEAPON ----------- Particle Gun Particle Gun Particle Gun Improved Heavy Laser > --- INVENTORY -------- Improved Ion Engine Improved Ion Engine Aluminum Leg Aluminum Leg Medium Storage Unit Hacking Suite Light EM Pulse Cannon Light EM Pulse Cannon Grenade Launcher Grenade Launcher [Rating: 21] Favorites ----------- Power Improved Ion Engine Engine Improved Ion Engine Propulsion Light Treads Treads Light Treads Utility Medium Storage Unit Device Tractor Beam Storage Medium Storage Unit Hackware Hacking Suite Weapon Particle Gun Energy Gun Particle Gun Energy Cannon Light EM Pulse Cannon Launcher Grenade Launcher Build | -11 -10 -9 -9 ------- Run | Yrd Mat Mat Sto Slots Evolved 2 | . . 2 . Power . | . . . . Propulsion . | . . . . Utility . | . . . . Weapon 2 | . . 2 . Parts Attached 23 | 6 5 3 9 Power 3 | 1 1 . 1 Engine 3 | 1 1 . 1 Core . | . . . . Reactor . | . . . . Propulsion 6 | 2 1 . 3 Treads 6 | 2 1 . 3 Leg . | . . . . Wheel . | . . . . Hover . | . . . . Flight . | . . . . Utility 4 | 1 1 1 1 Device 1 | . 1 . . Storage 2 | 1 . 1 . Processor . | . . . . Hackware 1 | . . . 1 Protection . | . . . . Artifact . | . . . . Weapon 10 | 2 2 2 4 Energy Gun 6 | 2 1 2 1 Energy Cannon 2 | . . . 2 Ballistic Gun . | . . . . Ballistic Cannon . | . . . . Launcher 2 | . 1 . 1 Special Weapon . | . . . . Impact Weapon . | . . . . Slashing Weapon . | . . . . Piercing Weapon . | . . . . Special Melee Weapon . | . . . . Unidentified Prototypes 1 | . . . 1 Parts Lost 5 | . . . 5 Power 1 | . . . 1 Propulsion 2 | . . . 2 Utility . | . . . . Weapon 2 | . . . 2 Highest Loss Streak 3 | . . . 3 To Critical Strikes . | . . . . Average Slot Usage (%) 94 | . 91 100 94 Engine 11 | . 13 11 11 Treads 23 | . 27 22 19 Device 5 | . 7 11 . Storage 12 | . 14 11 11 Hackware 4 | . . . 10 Energy Gun 21 | . 15 33 18 Energy Cannon 4 | . . . 12 Launcher 10 | . 11 11 9 Peak Build Rating 21 | 6 10 14 21 Average Rating 11 | 3 7 13 16 On Entrance 7 | . 6 10 14 Naked Turns . | . . . . Heaviest Build 32 | 12 19 30 32 Greatest Support 40 | 40 40 40 40 Greatest Overweight (x) 1 | . . . 1 Average Overweight (x) . | . . . . Largest Inventory Capacity 10 | 8 8 10 10 Average Capacity 8 | 6 8 9 10 Most Carried 10 | 3 8 10 10 Average Carried 7 | 1 5 9 9 Final Capacity 10 | 8 8 10 10 Final Carried 10 | 3 8 10 9 Class Distribution -------------------- 58% | Gunner 41% | Mutant Dominant Class ---------------- Mutant | -10/Materials Gunner | -9/Materials Gunner | -9/Storage Resources | -11 -10 -9 -9 ----------- Run | Yrd Mat Mat Sto Matter Collected 643 | 230 84 106 223 Remotely 169 | . 63 106 . Salvage Created 921 | . 115 193 613 Parts 57 | . 3 11 43 Haulers Intercepted . | . . . . Recyclers Shooed 1 | . . . 1 Parts Field Recycled . | . . . . Retrieved Matter . | . . . . Parts Self-Destructed . | . . . . Prevented . | . . . . Kills | -11 -10 -9 -9 ------- Run | Yrd Mat Mat Sto Combat Hostiles Destroyed 25 | . 4 5 16 Guns 6 | . . 2 4 Cannons 2 | . . . 2 AOE 17 | . 4 3 10 Classes Destroyed 6 | . 1 2 3 Builder 1 | . . . 1 Recycler 2 | . . . 2 Watcher 3 | . . 1 2 Swarmer 3 | . . . 3 Grunt 14 | . 4 3 7 Sentry 8 | . . 2 6 Best Kill Streak 7 | . 2 4 7 Combat Bots Only 7 | . 2 4 7 Max Kills in Single Turn 3 | . 2 3 2 Gunslinging . | . . . . Exploded 3 | . 2 3 1 Melee . | . . . . Uniques/NPCs Destroyed . | . . . . Combat | -11 -10 -9 -9 -------- Run | Yrd Mat Mat Sto Hostile Shots Fired 105 | . 10 18 77 Missed 34 | . 4 6 24 Damage Taken 1136 | . 73 155 908 Core 420 | . 20 56 344 Absorbed by Shields . | . . . . Core Remaining (%) 96 | 100 92 . . Volleys Fired 50 | . 5 6 39 Largest 4 | . 1 4 4 Hottest 260 | . 30 225 260 Shots Fired 104 | . 5 21 78 Gun 59 | . . 18 41 Cannon 9 | . . . 9 Launcher 36 | . 5 3 28 Special . | . . . . Kinetic . | . . . . Thermal 59 | . . 18 41 Explosive 36 | . 5 3 28 Electromagnetic 9 | . . . 9 Robot Hit Streak 8 | . 1 4 8 Robot Miss Streak 3 | . 1 2 3 Penetration Max . | . . . . Secondary Targets . | . . . . Shots Hit Robots 53 | . 2 12 39 Core Hits 51 | . 6 11 34 Critical Kills . | . . . . Critical Parts Destroyed . | . . . . Critical Strikes 5 | . . 2 3 Burn 5 | . . 2 3 Melee Attacks . | . . . . Impact . | . . . . Slashing . | . . . . Piercing . | . . . . Sneak Attacks . | . . . . Combat Hostiles . | . . . . Follow-up Attacks . | . . . . Damage Inflicted 2160 | . 258 374 1528 Guns 500 | . . 179 321 Cannons 83 | . . . 83 Explosions 1577 | . 258 195 1124 Melee . | . . . . Ramming . | . . . . Kinetic . | . . . . Thermal 500 | . . 179 321 Explosive 1577 | . 258 195 1124 Electromagnetic 83 | . . . 83 Impact . | . . . . Slashing . | . . . . Piercing . | . . . . Highest Corruption 2 | . 2 1 1 Average Corruption 1 | . 2 1 1 Corruption Purged . | . . . . Corruption Blocked . | . . . . Effects 4 | . . . 4 Message Errors 2 | . . . 2 Heat Flow Errors 2 | . . . 2 Overload Shots . | . . . . Overflow Damage 12 | . . . 12 Projectiles . | . . . . Explosions 12 | . . . 12 Melee . | . . . . Knockbacks . | . . . . Impact . | . . . . Kinetic . | . . . . Secondary . | . . . . Self-Inflicted Damage 101 | . . . 101 Shots 5 | . . . 5 Rammed . | . . . . Targets Rammed . | . . . . Kicked . | . . . . Crushed . | . . . . Highest Temperature 805 | . 4 494 805 Average Temperature 327 | . 4 191 364 Received Heat Transfer 354 | . 42 93 219 Effects 46 | . . 2 44 Shutdowns 9 | . . . 9 Energy Bleed 5 | . . . 5 Interference 10 | . . 1 9 Matter Decay 4 | . . . 4 Short Circuit 4 | . . . 4 Damage (minor) 4 | . . 1 3 Damage (major) 7 | . . . 7 Damage (core) 3 | . . . 3 Siege Activations . | . . . . Robots Corrupted . | . . . . Combat Hostiles . | . . . . Parts Fried . | . . . . Impact Corruptions . | . . . . Robots Melted . | . . . . Combat Hostiles . | . . . . Parts Melted 2 | . . . 2 Heat Transferred 1443 | . . 555 888 Parts Sabotaged . | . . . . Parts Stolen . | . . . . Parts Stripped . | . . . . Power Chain Reactions . | . . . . Alert | -11 -10 -9 -9 ------- Run | Yrd Mat Mat Sto Peak Influence 650 | . 137 275 650 Initial 115 | . . 57 115 Average 178 | . 66 93 383 Maximum Alert Level 2 | . . 1 2 Low Security (%) 68 | 100 100 94 13 Level 1 20 | . . 5 53 Level 2 11 | . . . 33 Level 3 . | . . . . Level 4 . | . . . . Level 5 . | . . . . High Security . | . . . . Max Security . | . . . . Squads Dispatched 5 | . . 1 4 Investigation 2 | . . 1 1 Extermination . | . . . . Reinforcement 2 | . . . 2 Assault . | . . . . Garrison 1 | . . . 1 Intercept . | . . . . Searches Triggered . | . . . . Construction Impeded 2 | . . . 2 Haulers Reinforced . | . . . . Active Scanning Responses . | . . . . Cargo Convoy Interrupts . | . . . . Stealth | -11 -10 -9 -9 --------- Run | Yrd Mat Mat Sto Distress Signals 3 | . 1 1 1 Communications Jammed . | . . . . Distress Signals . | . . . . Times Spotted 33 | . 7 7 19 Peak Tracking Total 7 | . 3 5 7 Tactical Retreats . | . . . . Traps | -11 -10 -9 -9 ------- Run | Yrd Mat Mat Sto Traps Triggered 3 | . 2 . 1 Indirectly . | . . . . Trap Hack Attempts . | . . . . Triggered . | . . . . Disarmed . | . . . . Reprogrammed . | . . . . Reused . | . . . . Traps Extracted . | . . . . Installed . | . . . . Triggered . | . . . . Machines | -11 -10 -9 -9 ---------- Run | Yrd Mat Mat Sto Machines Disabled 6 | . 1 . 5 Max in Single Turn 2 | . 1 . 2 Machines Repaired . | . . . . Machines Dismantled . | . . . . Machines Sabotaged . | . . . . Overloaded Fab Kills . | . . . . Hacking | -11 -10 -9 -9 --------- Run | Yrd Mat Mat Sto Machines Accessed 9 | . 5 2 2 Terminals 9 | . 5 2 2 Fabricators . | . . . . Repair Stations . | . . . . Recycling Units . | . . . . Scanalyzers . | . . . . Garrison Access . | . . . . Total Hacks 21 | . 11 5 5 Successful 6 | . 2 2 2 Failed 15 | . 9 3 3 Catastrophic 4 | . 3 1 . Database Lockouts . | . . . . Manual 6 | . 4 2 . Terminals 21 | . 11 5 5 Fabricators . | . . . . Repair Stations . | . . . . Recycling Units . | . . . . Scanalyzers . | . . . . Garrison Access . | . . . . Terminal Hacks 6 | . 2 2 2 Prototype ID Bank 2 | . 2 . . Open Door 2 | . . . 2 Branch Access Points 1 | . . 1 . Zone Layout 1 | . . 1 . Fabricator Hacks . | . . . . Repair Station Hacks . | . . . . Recycling Unit Hacks . | . . . . Scanalyzer . | . . . . Garrison Access Hacks . | . . . . Unauthorized Hacks . | . . . . Terminals . | . . . . Fabricators . | . . . . Repair Stations . | . . . . Recycling Units . | . . . . Scanalyzers . | . . . . Garrison Access . | . . . . Data Cores Recovered . | . . . . Used . | . . . . Hacking Detections 8 | . 5 1 2 Full Trace Events 2 | . 1 1 . Feedback Events 1 | . . 1 . Corruption 1 | . . 1 . Feedback Blocked . | . . . . Robot Schematics Acquired . | . . . . Robots Built . | . . . . Authchips . | . . . . Time . | . . . . Total Robot Build Rating . | . . . . Part Schematics Acquired . | . . . . Parts Built . | . . . . Authchips . | . . . . Time . | . . . . Total Part Build Rating . | . . . . Parts Repaired . | . . . . Time . | . . . . Parts Recycled . | . . . . Recycled Matter . | . . . . Retrieved Matter . | . . . . Retrieved Components . | . . . . Parts Scanalyzed . | . . . . Part Schematics Acquired . | . . . . Parts Damaged . | . . . . Bothacking | -11 -10 -9 -9 ------------ Run | Yrd Mat Mat Sto Used RIF Installer . | . . . . Robots Hacked . | . . . . Non-combat . | . . . . Combat . | . . . . Robot Hacks Applied . | . . . . Relay Couplers Released . | . . . . Fabnet Peak Effective % . | . . . . Robots Rewired . | . . . . Allies Hacked . | . . . . Hacks Repelled . | . . . . Allies | -11 -10 -9 -9 -------- Run | Yrd Mat Mat Sto Total Allies . | . . . . Largest Group . | . . . . Highest-Rated Group . | . . . . Highest-Rated Ally . | . . . . Total Orders . | . . . . Ally Attacks . | . . . . Total Damage . | . . . . Kills . | . . . . Allies Corrupted . | . . . . Allies Melted . | . . . . Intel | -11 -10 -9 -9 ------- Run | Yrd Mat Mat Sto Robot Analysis Total . | . . . . Derelict Logs Recovered . | . . . . Drone Launches . | . . . . Drone Recoveries . | . . . . Exploration | -11 -10 -9 -9 ------------- Run | Yrd Mat Mat Sto Turns Passed 1188 | 114 393 258 423 Spaces Moved 597 | 95 227 139 136 Core 53 | 53 . . . Treads 544 | 42 227 139 136 Legs . | . . . . Wheels . | . . . . Hover . | . . . . Flight . | . . . . Fastest Speed 50 | 50 160 160 160 Average Speed 160 | 98 160 160 206 Slowest Speed 240 | 160 160 160 240 Overloaded Moves . | . . . . Propulsion Burnouts . | . . . . Robots Hopped . | . . . . Cave-ins Triggered . | . . . . Exploration Rate (%) 23 | 3 37 19 36 Regions Visited 3 Branch Regions 1 Pre-discovered Areas . | . . . . Known Exits Taken 1 | . . 1 . Unknown Exits Taken 2 | 1 1 . . Scrap Searched . | . . . . Spaces Dug 7 | . . . 7 Terrain Destroyed 178 | . 23 24 131 Melee . | . . . . Projectile 2 | . . . 2 AOE 176 | . 23 24 129 Terrain Rammed . | . . . . Walls Destroyed . | . . . . Machines Disabled . | . . . . Actions | -11 -10 -9 -9 --------- Run | Yrd Mat Mat Sto Total 750 | 115 254 163 218 Wait 29 | 6 . . 23 Move 594 | 94 226 138 136 Hop . | . . . . Pick Up 37 | 9 12 10 6 Fast Attach . | . . . . Attach 20 | 6 4 2 8 Detach 2 | . 1 . 1 Swap 3 | . 1 1 1 Drop 15 | . 5 6 4 Fire 50 | . 5 6 39 Melee . | . . . . Ram . | . . . . Kick . | . . . . Crush . | . . . . Escape Stasis . | . . . . Rewire . | . . . . Trap . | . . . . Miscellaneous . | . . . . Route ------- -11/Scrapyard -10/Materials -9/Materials (discovered 4 exits: Min x2 / *Sto x2) -9/Storage History --------- Turn | Location | Event 8 | -11/Scrapyard | Discovered new exit (range 15) 115 | -11/Scrapyard | Entered Materials 314 | -10/Materials | Build established: Mutant 440 | -10/Materials | Discovered new exit (range 16) 508 | -10/Materials | Entered another Materials area 508 | -9/Materials | Evolved 2 slots: Weapon x2 716 | -9/Materials | Discovered new exit (range 8) 716 | -9/Materials | Identified exit to Mines 716 | -9/Materials | Identified exit to Storage 766 | -9/Materials | Entered Storage 816 | -9/Storage | Build established: Gunner 822 | -9/Storage | Garrison activated, responded to threat 893 | -9/Storage | Core integrity fell below 50% 1019 | -9/Storage | Found Prototype Launcher 1067 | -9/Storage | Core integrity fell below 20% 1096 | -9/Storage | Destroyed 7 combat bots 1111 | -9/Storage | Lost 3 parts (1p1n1w) 1189 | -9/Storage | Destroyed by G-34 Mercenary with Small Laser Last Messages --------------- 01104_ The unstable cave ceiling collapses. 01105_ W-16 Scout destroyed. 01105_ U-05 Engineer destroyed. 01106_ Critical hit (Burn: +37). 01109_ The unstable cave ceiling collapses. 01109_ Y-45 Defender destroyed. 01119_ The unstable cave ceiling collapses. 01129_ System corrupted: Heat flow error (+291). 01130_ Acquired 18 matter. 01142_ Acquired Lgt. Treads. 01144_ Acquired 23 matter. 01147_ Acquired 14 matter. 01151_ K-01 Serf collects debris. 01153_ U-05 Engineer lays Concrete. 01154_ U-05 Engineer builds a Wall. 01155_ K-01 Serf collects debris. 01160_ U-05 Engineer builds a Wall. 01167_ K-01 Serf cleans the Compression Vault. 01171_ G-34 Mercenary destroyed. 01176_ Compression Vault explodes. Map ----- +----------------------------------------------------+ | ????????????????????????????????????????????????? | | ????????????????????????????????????????????????? | | ????????????????????????????????????????????????? | | ????????????????????????????????????????????????? | | ????????????????????????????????????????????????? | | ????????????????????????????????????????????????? | | ????????????????????????????????????????????????? | | ????????????????????????????????????????????????? | | ??????????????????????????########??????????????? | | ????????????????????????### ## ###????????????? | | ?????????????????????#### # ######???????? | | ???????????????#+##### #???????? | | ??????????????? #???????? | | ??????????????? ! #???????? | | ???????????????? *%= #####???? | | ???????????????????# ! # ## + #???? | | ???????????????????# k = ## #T###???? | | ???????????????????# # ## ###?????? | | ???????????????????# # * " ## ######### | | ???????????????????# # ["""## # # | | ???????????????????# # ""## # # | | ???????????????????# # ## # # | | ???????????????????# ######### # # | | ???????????????????# # # # | | ???????????????##### # # # | | ????????? + a @ # | | ????????????####### g # | | ??????????????????# a # # | | ??????????????????# # # | | ??????????????????#+###### # # | | ?????????????????????????## ######### | | ??????????????????????????## # # # | | ????????????????????????????## ### # # | | ?????????????????????????????? [# + # | | ?????????????????????????????? # # # | | ??????????????????????????????" """ # # # | | ??????????????????????????????" """ + # | | ????????????????????????????""" """ # # # | | ????????????????????????????? # # | | ???????????????????????????? #% # | | ?????????????????????????????? # # =[# | | ????????????????????????????????## # # !%** | | ????????????????????????????????# # ######%= | | ???????????????????????????????## # [%!* ! | | ?????????????????????????####### ## #!"" [= | | ????????????????????????? """""[ | | ??????????????????????????????# ###% """"" # | | ??????????????????????????????### ## # # | | ???????????????????????????????????## # # | | ????????????????????????????????????# ######### | +----------------------------------------------------+ Best States ------------- Heat Dissipation 28 Energy Generation 12 Energy Capacity 265 Matter Stores 300 Matter Capacity 300 Sight Range 16 Terrain Scan Density 10 Evasion (%) 50 Recoil Reduction 2 Offensive Hacking 10 Item Schematics ----------------- None Robot Schematics ------------------ None Fabricated ------------ Nothing Alien Tech Used ----------------- None Achievements -------------- Use The Force Challenges ------------ None Game ------ Seed PowerBiocellBox Manual? 0 Play Time 00:23:36 Cumulative 21.6 hours Start 2024.12.23 @ 20:33:38 End 2025.01.12 @ 19:41:27 Sessions 2 Manual Loads 0 Difficulty Rogue Special Mode None Game No. 26 Rogue 26 Adventurer 0 Explorer 0 Win Type - Total 0 Types 0/0/0/0/0/0/0/0/0 Lore% 15 Gallery% 25 Achievement% 26 Wizard Run 0 Options --------- Layout 1 ASCII 0 Keyboard 1 Movement Numpad Keybinds 0 Fullscreen 1 Font 32/SmallcapsGlow Map View 50x35 Zoom Use 0% Tactical HUD 1 Map Filters NONE Filters NONE Steam 1 RUN: 10833fa5-1224-46c9-a3a3-826f7f96af8f